fUSD/lending_fUSD_20240114
["ID","MTS","AMOUNT","RATE_DAILY","PERIOD"]
[311604023,1705264296101,-1027.7,0.00031232,2]
[311604024,1705264296111,-6230.07,0.00031232,2]
[311604025,1705264296124,-1130.45,0.00031232,2]
[311604026,1705264296136,-516.22180022,0.00031232,2]
[311604027,1705264296147,-500.0,0.00031232,2]
[311604028,1705264296163,-244.80601792,0.00031232,2]
[311604029,1705264296173,-1353.14,0.00031232,2]
[311604030,1705264296183,-500.0,0.00031232,2]
[311604031,1705264296193,-500.0,0.00031232,5]
[311604032,1705264296203,-500.0,0.00031232,2]
[311604033,1705264296214,-604.09778709,0.00031232,2]
[311604034,1705264296225,-3435.49,0.00031232,2]
[311604035,1705264296235,-500.0,0.00031232,2]
[311604036,1705264296246,-644.33,0.00031232,2]
[311604037,1705264296256,-573.71,0.00031232,2]
[311604038,1705264296267,-2448.9,0.00031232,2]
[311604039,1705264296276,-3036.82,0.00031232,2]
[311604040,1705264296286,-500.0,0.00031232,2]
[311604041,1705264296296,-597.1,0.00031232,2]
[311604042,1705264296307,-750.17,0.00031232,2]
[311604043,1705264296318,-828.04,0.00031232,2]
[311604044,1705264296329,-2478.07,0.00031232,2]
[311604045,1705264296339,-1871.96,0.00031232,2]
[311604046,1705264296349,-1895.33,0.00031232,2]
[311604047,1705264296360,-801.45,0.00031232,2]
[311604048,1705264296372,-1560.14,0.00031232,2]
[311604049,1705264296382,-3224.85,0.00031232,2]
[311604050,1705264296392,-533.31,0.00031232,2]
[311604051,1705264296401,-5325.11,0.00031232,2]
[311604052,1705264296412,-500.0,0.00031232,2]
[311604053,1705264296422,-500.0,0.00031232,2]
[311604054,1705264296431,-949.53,0.00031232,2]
[311604055,1705264296441,-1784.8,0.00031232,2]
[311604056,1705264296451,-730.14,0.00031232,2]
[311604057,1705264296462,-1488.85,0.00031232,2]
[311604058,1705264296473,-847.15,0.00031232,2]
[311604059,1705264296483,-2331.02,0.00031232,2]
[311604060,1705264296493,-500.0,0.00031232,2]
[311604061,1705264296502,-787.16,0.00031232,2]
[311604062,1705264296512,-1513.17,0.00031232,2]
[311604063,1705264296522,-841.76,0.00031232,2]
[311604064,1705264296531,-500.0,0.00031232,2]
[311604065,1705264296541,-524.76,0.00031232,2]
[311604066,1705264296858,-1046.23,0.00031232,2]
[311604067,1705264296880,-611.14,0.00031232,2]
[311604068,1705264296890,-1523.32,0.00031232,2]
[311604069,1705264296900,-500.0,0.00031232,2]
[311604070,1705264296910,-500.0,0.00031232,2]
[311604071,1705264296920,-4188.56,0.00031232,2]
[311604072,1705264296930,-2000.73,0.00031232,2]
[311604073,1705264296940,-1059.93,0.00031232,2]
[311604074,1705264296949,-1556.83,0.00031232,2]
[311604075,1705264296959,-500.0,0.00031232,2]
[311604076,1705264296969,-559.75,0.00031232,2]
[311604077,1705264296978,-593.18,0.00031232,2]
[311604078,1705264296988,-790.76,0.00031232,2]
[311604079,1705264296998,-1572.81,0.00031232,2]
[311604080,1705264297008,-722.19,0.00031232,2]
[311604081,1705264297018,-545.56971824,0.00031232,2]
[311604082,1705264297028,-1160.27,0.00031232,2]
[311604083,1705264297037,-266.04822814,0.00031232,2]
[311604084,1705264297047,-10911.16,0.00031232,2]
[311604085,1705264297057,-1333.04,0.00031232,2]
[311604086,1705264297066,-2072.02,0.00031232,2]
[311604087,1705264297077,-500.0,0.00031232,2]
[311604088,1705264297086,-4765.57,0.00031232,2]
[311604089,1705264297096,-711.46,0.00031232,2]
[311604090,1705264297106,-500.0,0.00031232,2]
[311604091,1705264297117,-500.0,0.00031232,2]
[311604092,1705264297127,-568.95,0.00031232,2]
[311604093,1705264297138,-500.0,0.00031232,2]
[311604094,1705264297150,-1038.07,0.00031232,2]
[311604095,1705264297160,-500.0,0.00031232,2]
[311604096,1705264297169,-6925.8,0.00031232,2]
[311604097,1705264297179,-7269.33,0.00031232,2]
[311604098,1705264297191,-775.66,0.00031232,2]
[311604099,1705264297201,-1572.91,0.00031232,2]
[311604100,1705264297211,-1868.67,0.00031232,2]
[311604101,1705264297222,-756.09,0.00031232,2]
[311604102,1705264297234,-1049.48,0.00031232,2]
[311604103,1705264297243,-1736.87,0.00031232,2]
[311604104,1705264297253,-500.0,0.00031232,2]
[311604105,1705264297263,-1088.94,0.00031232,2]
[311604106,1705264297273,-1179.24,0.00031232,2]
[311604107,1705264297282,-660.67,0.00031232,2]
[311604108,1705264297292,-500.0,0.00031232,2]
[311604109,1705264297302,-1917.76,0.00031232,2]
[311604110,1705264297311,-1883.84,0.00031232,2]
[311604111,1705264297321,-500.0,0.00031232,2]
[311604112,1705264297331,-500.0,0.00031232,2]
[311604113,1705264297341,-500.0,0.00031232,2]
[311604114,1705264297351,-3549.24,0.00031232,2]
[311604115,1705264297361,-1639.07,0.00031232,2]
[311604116,1705264297372,-726.79,0.00031232,2]
[311604117,1705264297382,-500.0,0.00031232,2]
[311604118,1705264297392,-500.0,0.00031232,2]
[311604119,1705264297402,-500.0,0.00031232,2]
[311604120,1705264297411,-1673.99,0.00031232,2]
[311604121,1705264297421,-165.36926568,0.00031232,2]
[311604122,1705264297430,-3692.47,0.00031232,2]
[311604123,1705264297440,-19757.41,0.00031232,2]
[311604124,1705264297450,-1877.85,0.00031232,2]
[311604125,1705264297460,-500.0,0.00031232,2]
[311604126,1705264297470,-2271.06,0.00031232,2]
[311604127,1705264297480,-500.0,0.00031232,2]
[311604128,1705264297489,-500.0,0.00031232,2]
[311604129,1705264297499,-2078.93,0.00031232,2]
[311604130,1705264297509,-766.43,0.00031232,2]
[311604131,1705264297519,-862.55,0.00031232,2]
[311604132,1705264297529,-530.4267575,0.00031232,2]
[311604133,1705264297539,-1101.05,0.00031232,2]
[311604134,1705264297549,-1066.09,0.00031232,2]
[311604135,1705264297559,-500.0,0.00031232,2]
[311604136,1705264297569,-1259.5,0.00031232,2]
[311604137,1705264297579,-648.66,0.00031232,2]
[311604138,1705264297589,-500.0,0.00031232,2]
[311604139,1705264297600,-3155.7,0.00031232,2]
[311604140,1705264297609,-500.0,0.00031232,2]
[311604141,1705264297621,-500.0,0.00031232,2]
[311604142,1705264297631,-1899.34,0.00031232,2]
[311604143,1705264297641,-541.14,0.00031232,2]
[311604144,1705264297650,-1672.54,0.00031232,2]
[311604145,1705264297660,-500.0,0.00031232,2]
[311604146,1705264297670,-500.0,0.00031232,2]
[311604147,1705264297680,-612.36,0.00031232,2]
[311604148,1705264297689,-500.0,0.00031232,2]
[311604149,1705264297700,-1740.09,0.00031232,2]
[311604150,1705264297709,-920.75,0.00031232,2]
[311604151,1705264297719,-3991.14,0.00031232,2]
[311604152,1705264297729,-10488.2,0.00031232,2]
[311604153,1705264297739,-1101.91,0.00031232,2]
[311604154,1705264297749,-1042.12,0.00031232,2]
[311604155,1705264297758,-956.24,0.00031232,2]
[311604156,1705264297768,-1103.01,0.00031232,2]
[311604157,1705264297778,-500.0,0.00031232,2]
[311604158,1705264297787,-896.85,0.00031232,2]
[311604159,1705264297796,-3953.12,0.00031232,2]
[311604160,1705264297806,-500.0,0.00031232,2]
[311604161,1705264297816,-1033.26,0.00031232,2]
[311604162,1705264297826,-2574.62,0.00031232,2]
[311604163,1705264297836,-500.0,0.00031232,2]
[311604164,1705264297845,-1533.7,0.00031232,2]
[311604165,1705264297855,-2093.22,0.00031232,2]
[311604166,1705264297864,-882.31,0.00031232,2]
[311604167,1705264297873,-1449.1,0.00031232,2]
[311604168,1705264297882,-664.21,0.00031232,2]
[311604169,1705264297892,-526.99,0.00031232,2]
[311604170,1705264297903,-808.11,0.00031232,2]
[311604171,1705264297913,-2286.6,0.00031232,2]
[311604172,1705264297923,-732.92,0.00031232,2]
[311604173,1705264297933,-918.48,0.00031232,2]
[311604174,1705264297944,-1602.23,0.00031232,2]
[311604175,1705264297954,-500.0,0.00031232,2]
[311604176,1705264297964,-531.09,0.00031232,2]
[311604177,1705264297974,-567.37,0.00031232,2]
[311604178,1705264297985,-500.0,0.00031232,2]
[311604179,1705264297995,-2009.84,0.00031232,2]
[311604180,1705264298005,-500.0,0.00031232,2]
[311604181,1705264298016,-1108.45,0.00031232,2]
[311604182,1705264298026,-1201.65,0.00031232,2]
[311604183,1705264298037,-4796.3,0.00031232,2]
[311604184,1705264298047,-512.33,0.00031232,2]
[311604185,1705264298057,-549.32,0.00031232,2]
[311604186,1705264298068,-500.0,0.00031232,2]
[311604187,1705264298078,-647.06250212,0.00031232,2]
[311604188,1705264298088,-596.78,0.00031232,2]
[311604189,1705264298099,-2156.48,0.00031232,2]
[311604190,1705264298116,-2657.18,0.00031232,2]
[311604191,1705264298127,-723.46,0.00031232,2]
[311604192,1705264298140,-539.01,0.00031232,2]
[311604193,1705264298152,-1641.51,0.00031232,2]
[311604194,1705264298162,-2203.79,0.00031232,2]
[311604195,1705264298172,-500.0,0.00031232,2]
[311604196,1705264298184,-1057.67,0.00031232,2]
[311604197,1705264298195,-2139.26,0.00031232,2]
[311604198,1705264298206,-500.0,0.00031232,2]
[311604199,1705264298216,-1109.41,0.00031232,2]
[311604200,1705264298228,-3320.2,0.00031232,2]
[311604201,1705264298238,-500.0,0.00031232,2]
[311604202,1705264298249,-1370.66,0.00031232,2]
[311604203,1705264298259,-15119.89877906,0.0003125,2]
[311604204,1705264298270,-450.0,0.0003126,3]
[311604205,1705264298280,-200000.0,0.00031317,7]
[311604206,1705264298290,-186.0,0.0003135,2]
[311604207,1705264298301,-1963.74169438,0.00031406,5]
[311604208,1705264298311,-2032.0,0.00031497,2]
[311604209,1705264298321,-1839.387,0.00031497,2]
[311604210,1705264298332,-943.0,0.00031497,2]
[311604211,1705264298342,-500.0,0.000315,2]
[311604212,1705264298352,-500.0,0.00031506,2]
[311604213,1705264298362,-500.0,0.00031506,2]
[311604214,1705264298374,-500.0,0.00031506,2]
[311604215,1705264298383,-500.0,0.00031506,2]
[311604216,1705264298392,-500.0,0.00031506,2]
[311604217,1705264298402,-500.0,0.00031506,2]
[311604218,1705264298411,-500.0,0.00031506,2]
[311604219,1705264298421,-500.0,0.00031506,2]
[311604220,1705264298431,-500.0,0.00031506,2]
[311604221,1705264298441,-500.0,0.00031506,2]
[311604222,1705264298451,-500.0,0.00031506,2]
[311604223,1705264298461,-500.0,0.00031506,2]
[311604224,1705264298470,-522.7,0.00031506,2]
[311604225,1705264298480,-500.0,0.00031506,2]
[311604226,1705264298490,-500.0,0.00031506,2]
[311604227,1705264298500,-543.8,0.00031506,2]
[311604228,1705264298511,-500.0,0.00031506,2]
[311604229,1705264298520,-250.0,0.00031506,2]
[311604230,1705264298530,-518.27,0.00031506,2]
[311604231,1705264298540,-500.0,0.00031506,2]
[311604232,1705264298550,-512.56,0.00031506,2]
[311604233,1705264298559,-500.0,0.00031506,2]
[311604234,1705264298569,-500.0,0.00031506,2]
[311604235,1705264298579,-495.50468677,0.00031506,2]
[311604236,1705264298589,-528.06,0.00031506,2]
[311604237,1705264298599,-500.0,0.00031506,2]
[311604238,1705264298609,-538.04,0.00031506,2]
[311604239,1705264298621,-500.0,0.00031506,2]
[311604240,1705264298631,-500.0,0.00031506,2]
[311604241,1705264298641,-500.0,0.00031506,2]
[311604242,1705264298651,-225.31613414,0.00031506,2]
[311604243,1705264298660,-829.92,0.00031506,2]
[311604244,1705264298671,-500.0,0.00031506,2]
[311604245,1705264298680,-500.0,0.00031506,2]
[311604246,1705264298690,-831.82,0.00031506,2]
[311604247,1705264298700,-500.0,0.00031506,2]
[311604248,1705264298710,-500.0,0.00031506,2]
[311604249,1705264298720,-215.87340794,0.00031506,2]
[311604250,1705264298730,-753.34,0.00031506,2]
[311604251,1705264298739,-500.0,0.00031506,2]
[311604252,1705264298749,-501.7606043,0.00031506,2]
[311604253,1705264298759,-716.55,0.00031506,2]
[311604254,1705264298769,-500.0,0.00031506,2]
[311604255,1705264298778,-500.0,0.00031506,2]
[311604256,1705264298788,-500.0,0.00031506,2]
[311604257,1705264298798,-500.0,0.00031506,2]
[311604258,1705264298807,-549.71,0.00031506,2]
[311604259,1705264298817,-500.0,0.00031506,2]
[311604260,1705264298828,-500.0,0.00031506,2]
[311604261,1705264298837,-534.55,0.00031506,2]
[311604262,1705264298847,-500.0,0.00031506,2]
[311604263,1705264298856,-500.0,0.00031506,2]
[311604264,1705264298867,-511.27,0.00031506,2]
[311604265,1705264298876,-554.03,0.00031506,2]
[311604266,1705264298885,-500.0,0.00031506,2]
[311604267,1705264298894,-500.0,0.00031506,2]
[311604268,1705264298904,-662.74,0.00031506,2]
[311604269,1705264298914,-590.75,0.00031506,2]
[311604270,1705264298924,-500.0,0.00031506,2]
[311604271,1705264298934,-500.0,0.00031506,2]
[311604272,1705264298944,-500.0,0.00031506,2]
[311604273,1705264298954,-500.0,0.00031506,2]
[311604274,1705264298963,-500.0,0.00031506,2]
[311604275,1705264298973,-852.63,0.00031506,2]
[311604276,1705264298982,-500.0,0.00031506,2]
[311604277,1705264298992,-500.0,0.00031506,2]
[311604278,1705264299002,-500.0,0.00031506,2]
[311604279,1705264299011,-500.0,0.00031506,2]
[311604280,1705264299021,-500.0,0.00031506,2]
[311604281,1705264299031,-500.0,0.00031506,2]
[311604282,1705264299040,-500.0,0.00031506,2]
[311604283,1705264299050,-556.75,0.00031506,2]
[311604284,1705264299060,-500.0,0.00031506,2]
[311604285,1705264299069,-500.0,0.00031506,2]
[311604286,1705264299079,-500.0,0.00031506,2]
[311604287,1705264299088,-584.84,0.00031506,2]
[311604288,1705264299098,-500.0,0.00031506,2]
[311604289,1705264299107,-500.0,0.00031506,2]
[311604290,1705264299119,-500.0,0.00031506,2]
[311604291,1705264299129,-955.59,0.00031506,2]
[311604292,1705264299139,-500.0,0.00031506,2]
[311604293,1705264299150,-500.0,0.00031506,2]
[311604294,1705264299160,-500.0,0.00031506,2]
[311604295,1705264299170,-216.40363011,0.00031506,2]
[311604296,1705264299180,-500.0,0.00031506,2]
[311604297,1705264299190,-904.67,0.00031506,2]
[311604298,1705264299200,-500.0,0.00031506,2]
[311604299,1705264299210,-500.0,0.00031506,2]
[311604300,1705264299219,-500.0,0.00031506,2]
[311604301,1705264299229,-500.0,0.00031506,2]
[311604302,1705264299239,-290.55185199,0.00031506,2]
[311604303,1705264299248,-500.0,0.00031506,2]
[311604304,1705264299258,-500.0,0.00031506,2]
[311604305,1705264299268,-500.0,0.00031506,2]
[311604306,1705264299278,-500.0,0.00031506,2]
[311604307,1705264299287,-508.74,0.00031506,2]
[311604308,1705264299422,-500.0,0.00031506,2]
[311604309,1705264299431,-500.0,0.00031506,2]
[311604310,1705264299441,-501.92,0.00031506,2]
[311604311,1705264299450,-500.0,0.00031506,2]
[311604312,1705264299459,-500.0,0.00031506,2]
[311604313,1705264299468,-502.98,0.00031506,2]
[311604314,1705264299477,-500.0,0.00031506,2]
[311604315,1705264299487,-549.05,0.00031506,2]
[311604316,1705264299496,-500.0,0.00031506,2]
[311604317,1705264299506,-500.0,0.00031506,2]
[311604318,1705264299515,-768.43,0.00031506,2]
[311604319,1705264299524,-500.0,0.00031506,2]
[311604320,1705264299533,-500.0,0.00031506,2]
[311604321,1705264299543,-733.75,0.00031506,2]
[311604322,1705264299552,-1482.34,0.00031506,2]
[311604323,1705264299561,-500.0,0.00031506,2]
[311604324,1705264299570,-500.0,0.00031506,2]
[311604325,1705264299579,-987.24,0.00031506,2]
[311604326,1705264299588,-500.0,0.00031506,2]
[311604327,1705264299597,-500.0,0.00031506,2]
[311604328,1705264299607,-500.0,0.00031506,2]
[311604329,1705264299617,-500.0,0.00031506,2]
[311604330,1705264299627,-500.0,0.00031506,2]
[311604331,1705264299636,-500.0,0.00031506,2]
[311604332,1705264299645,-522.06,0.00031506,2]
[311604333,1705264299655,-500.0,0.00031506,2]
[311604334,1705264299664,-500.0,0.00031506,2]
[311604335,1705264299673,-902.15,0.00031506,2]
[311604336,1705264299682,-500.0,0.00031506,2]
[311604337,1705264299691,-500.0,0.00031506,2]
[311604338,1705264299700,-500.0,0.00031506,2]
[311604339,1705264299709,-500.0,0.00031506,2]
[311604340,1705264299718,-500.0,0.00031506,2]
[311604341,1705264299727,-500.0,0.00031506,2]
[311604342,1705264299736,-500.0,0.00031506,2]
[311604343,1705264299745,-633.15,0.00031506,2]
[311604344,1705264299755,-500.0,0.00031506,2]
[311604345,1705264299766,-500.0,0.00031506,2]
[311604346,1705264299775,-733.43,0.00031506,2]
[311604347,1705264299784,-681.94,0.00031506,2]
[311604348,1705264299793,-500.0,0.00031506,2]
[311604349,1705264299802,-500.0,0.00031506,2]
[311604350,1705264299811,-500.0,0.00031506,2]
[311604351,1705264299820,-500.0,0.00031506,2]
[311604352,1705264299829,-861.38,0.00031506,2]
[311604353,1705264299838,-500.0,0.00031506,2]
[311604354,1705264299847,-607.46,0.00031506,2]
[311604355,1705264299856,-871.23,0.00031506,2]
[311604356,1705264299866,-540.76,0.00031506,2]
[311604357,1705264299876,-731.62,0.00031506,2]
[311604358,1705264299885,-500.0,0.00031506,2]
[311604359,1705264299894,-500.0,0.00031506,2]
[311604360,1705264299903,-500.0,0.00031506,2]
[311604361,1705264299913,-500.0,0.00031506,2]
[311604362,1705264299922,-500.0,0.00031506,2]
[311604363,1705264299931,-573.03,0.00031506,2]
[311604364,1705264299940,-500.0,0.00031506,2]
[311604365,1705264299950,-500.0,0.00031506,2]
[311604366,1705264299959,-500.0,0.00031506,2]
[311604367,1705264299968,-500.0,0.00031506,2]
[311604368,1705264299977,-541.18,0.00031506,2]
[311604369,1705264299986,-1043.04,0.00031506,2]
[311604370,1705264299996,-500.0,0.00031506,2]
[311604371,1705264300005,-524.14,0.00031506,2]
[311604372,1705264300016,-500.0,0.00031506,2]
[311604373,1705264300025,-971.45,0.00031506,2]
[311604374,1705264300037,-720.76,0.00031506,2]
[311604375,1705264300048,-1331.65,0.00031506,2]
[311604376,1705264300058,-173.3391013,0.00031506,2]
[311604377,1705264300067,-500.0,0.00031506,2]
[311604378,1705264300076,-500.0,0.00031506,2]
[311604379,1705264300085,-422.94291238,0.00031506,2]
[311604380,1705264300094,-500.0,0.00031506,2]
[311604381,1705264300103,-887.35,0.00031506,2]
[311604382,1705264300112,-1632.65,0.00031506,2]
[311604383,1705264300122,-1287.99,0.00031506,2]
[311604384,1705264300131,-500.0,0.00031506,2]
[311604385,1705264300141,-500.0,0.00031506,2]
[311604386,1705264300153,-500.0,0.00031506,2]
[311604387,1705264300162,-500.0,0.00031506,2]
[311604388,1705264300171,-500.0,0.00031506,2]
[311604389,1705264300180,-568.32,0.00031506,2]
[311604390,1705264300190,-1075.72,0.00031506,2]
[311604391,1705264300199,-500.0,0.00031506,2]
[311604392,1705264300208,-966.98,0.00031506,2]
[311604393,1705264300217,-611.32,0.00031506,2]
[311604394,1705264300226,-1190.52,0.00031506,2]
[311604395,1705264300236,-500.0,0.00031506,2]
[311604396,1705264300246,-1150.22,0.00031506,2]
[311604397,1705264300255,-804.23,0.00031506,2]
[311604398,1705264300264,-500.0,0.00031506,2]
[311604399,1705264300273,-881.95,0.00031506,2]
[311604400,1705264300282,-500.0,0.00031506,2]
[311604401,1705264300291,-500.0,0.00031506,2]
[311604402,1705264300300,-500.0,0.00031506,2]
[311604403,1705264300309,-523.69,0.00031506,2]
[311604404,1705264300318,-604.18,0.00031506,2]
[311604405,1705264300327,-737.47,0.00031506,2]
[311604406,1705264300337,-500.0,0.00031506,2]
[311604407,1705264300345,-500.0,0.00031506,2]
[311604408,1705264300354,-500.0,0.00031506,2]
[311604409,1705264300364,-816.74,0.00031506,2]
[311604410,1705264300374,-500.0,0.00031506,2]
[311604411,1705264300383,-500.0,0.00031506,2]
[311604412,1705264300392,-500.0,0.00031506,2]
[311604413,1705264300401,-1018.42,0.00031506,2]
[311604414,1705264300410,-513.72797489,0.00031506,2]
[311604415,1705264300419,-691.77,0.00031506,2]
[311604416,1705264300428,-500.0,0.00031506,2]
[311604417,1705264300437,-532.86,0.00031506,2]
[311604418,1705264300446,-500.0,0.00031506,2]
[311604419,1705264300455,-500.0,0.00031506,2]
[311604420,1705264300464,-500.0,0.00031506,2]
[311604421,1705264300473,-500.0,0.00031506,2]
[311604422,1705264300482,-500.0,0.00031506,2]
[311604423,1705264300491,-500.0,0.00031506,2]
[311604424,1705264300500,-500.0,0.00031506,2]
[311604425,1705264300509,-624.45,0.00031506,2]
[311604426,1705264300518,-592.67,0.00031506,2]
[311604427,1705264300527,-500.0,0.00031506,2]
[311604428,1705264300536,-840.8,0.00031506,2]
[311604429,1705264300545,-1035.43,0.00031506,2]
[311604430,1705264300554,-901.33,0.00031506,2]
[311604431,1705264300563,-500.0,0.00031506,2]
[311604432,1705264300572,-983.46,0.00031506,2]
[311604433,1705264300581,-500.0,0.00031506,2]
[311604434,1705264300590,-705.45,0.00031506,2]
[311604435,1705264300599,-500.0,0.00031506,2]
[311604436,1705264300608,-511.79,0.00031506,2]
[311604437,1705264300618,-500.0,0.00031506,2]
[311604438,1705264300628,-531.03,0.00031506,2]
[311604439,1705264300637,-500.0,0.00031506,2]
[311604440,1705264300646,-583.5,0.00031506,2]
[311604441,1705264300655,-652.55,0.00031506,2]
[311604442,1705264300665,-500.0,0.00031506,2]
[311604443,1705264300674,-500.0,0.00031506,2]
[311604444,1705264300684,-500.0,0.00031506,2]
[311604445,1705264300693,-519.09,0.00031506,2]
[311604446,1705264300703,-500.0,0.00031506,2]
[311604447,1705264300714,-603.94,0.00031506,2]
[311604448,1705264300724,-782.01,0.00031506,2]
[311604449,1705264300734,-919.27,0.00031506,2]
[311604450,1705264300743,-655.09,0.00031506,2]
[311604451,1705264300752,-500.0,0.00031506,2]
[311604452,1705264300761,-848.01,0.00031506,2]
[311604453,1705264300771,-300.0,0.00031506,2]
[311604454,1705264300780,-500.0,0.00031506,2]
[311604455,1705264300789,-500.0,0.00031506,2]
[311604456,1705264300799,-500.0,0.00031506,2]
[311604457,1705264300808,-512.56,0.00031506,2]
[311604458,1705264300817,-912.72,0.00031506,2]
[311604459,1705264300827,-773.77,0.00031506,2]
[311604460,1705264300838,-932.74,0.00031506,2]
[311604461,1705264300847,-672.78,0.00031506,2]
[311604462,1705264300856,-500.0,0.00031506,2]
[311604463,1705264300866,-500.0,0.00031506,2]
[311604464,1705264300875,-675.44,0.00031506,2]
[311604465,1705264300885,-592.65,0.00031506,2]
[311604466,1705264300894,-812.07,0.00031506,2]
[311604467,1705264300902,-500.0,0.00031506,2]
[311604468,1705264300912,-623.53,0.00031506,2]
[311604469,1705264300921,-500.0,0.00031506,2]
[311604470,1705264300930,-500.0,0.00031506,2]
[311604471,1705264300939,-901.97,0.00031506,2]
[311604472,1705264300948,-584.39,0.00031506,2]
[311604473,1705264300958,-500.0,0.00031506,2]
[311604474,1705264300968,-652.39,0.00031506,2]
[311604475,1705264300977,-500.0,0.00031506,2]
[311604476,1705264300987,-500.0,0.00031506,2]
[311604477,1705264300999,-1030.54,0.00031506,2]
[311604478,1705264301008,-500.0,0.00031506,2]
[311604479,1705264301018,-500.0,0.00031506,2]
[311604480,1705264301027,-500.0,0.00031506,2]
[311604481,1705264301037,-500.0,0.00031506,2]
[311604482,1705264301046,-500.0,0.00031506,2]
[311604483,1705264301056,-1012.56,0.00031506,2]
[311604484,1705264301065,-602.82,0.00031506,2]
[311604485,1705264301074,-763.69,0.00031506,2]
[311604486,1705264301084,-500.0,0.00031506,2]
[311604487,1705264301093,-500.0,0.00031506,2]
[311604488,1705264301102,-525.95,0.00031506,2]
[311604489,1705264301112,-500.0,0.00031506,2]
[311604490,1705264301123,-500.0,0.00031506,2]
[311604491,1705264301133,-500.0,0.00031506,2]
[311604492,1705264301146,-507.67,0.00031506,2]
[311604493,1705264301156,-513.81,0.00031506,2]
[311604494,1705264301166,-636.62,0.00031506,2]
[311604495,1705264301175,-500.0,0.00031506,2]
[311604496,1705264301184,-902.91,0.00031506,2]
[311604497,1705264301194,-767.34,0.00031506,2]
[311604498,1705264301203,-1333.47,0.00031506,2]
[311604499,1705264301212,-638.06,0.00031506,2]
[311604500,1705264301223,-500.0,0.00031506,2]
[311604501,1705264301232,-803.03,0.00031506,2]
[311604502,1705264301241,-500.0,0.00031506,2]
[311604503,1705264301250,-500.0,0.00031506,2]
[311604504,1705264301260,-500.0,0.00031506,2]
[311604505,1705264301269,-500.0,0.00031506,2]
[311604506,1705264301278,-536.45,0.00031506,2]
[311604507,1705264301288,-500.0,0.00031506,2]
[311604508,1705264301297,-598.26,0.00031506,2]
[311604509,1705264301306,-500.0,0.00031506,2]
[311604510,1705264301316,-661.41,0.00031506,2]
[311604511,1705264301325,-1303.11,0.00031506,2]
[311604512,1705264301333,-776.96,0.00031506,2]
[311604513,1705264301343,-500.0,0.00031506,2]
[311604514,1705264301352,-500.0,0.00031506,2]
[311604515,1705264301361,-619.53,0.00031506,2]
[311604516,1705264301373,-583.54,0.00031506,2]
[311604517,1705264301383,-1031.14,0.00031506,2]
[311604518,1705264301392,-204.75481104,0.00031506,2]
[311604519,1705264301401,-1069.22,0.00031506,2]
[311604520,1705264301411,-668.9,0.00031506,2]
[311604521,1705264301421,-500.0,0.00031506,2]
[311604522,1705264301430,-500.0,0.00031506,2]